bitfinex-derivatives/quotes_ETHF0:USTF0_20250217
["timestamp","ask_amount","ask_price","bid_price","bid_amount"]
[1739796752199,0.72331,2765.0,2764.7,3.51382146]
[1739796752395,0.72331,2765.0,2764.7,4.23719146]
[1739796752700,0.72331,2765.0,2764.6,2.40649]
[1739796752894,0.72331,2765.0,2764.7,0.72337]
[1739796753399,3.07221285,2765.2,2764.6,1.6831]
[1739796753695,3.79545285,2765.2,2764.9,0.72331]
[1739796754294,3.07221285,2765.2,2764.8,3.2078]
[1739796754596,2.443,2765.1,2764.8,3.2078]
[1739796754996,2.443,2765.1,2764.9,0.7233]
[1739796755198,2.443,2765.1,2764.8,3.2078]
[1739796755394,2.443,2765.1,2764.9,0.7233]
[1739796755696,2.443,2765.1,2765.0,0.72329]
[1739796755998,2.443,2765.1,2764.8,3.2078]
[1739796756301,0.72329,2765.0,2764.8,3.93114]
[1739796756597,0.72329,2765.0,2764.8,3.2078]
[1739796756790,3.16627,2765.1,2764.9,0.72331]
[1739796756990,0.7233,2765.0,2764.8,3.2078]
[1739796757393,3.07221285,2764.9,2764.8,3.2078]
[1739796757800,2.443,2765.1,2764.8,3.2078]
[1739796757801,3.16628,2765.1,2764.9,0.7233]
[1739796758204,2.443,2765.1,2764.8,3.2078]
[1739796758394,2.444,2765.2,2764.8,3.2078]
[1739796758596,2.444,2765.5,2765.1,3.2078]
[1739796758802,2.444,2765.5,2765.2,0.5614]
[1739796758995,2.444,2765.5,2765.4,0.72318]
[1739796759401,3.07221285,2765.6,2765.5,0.72316]
[1739796759899,0.72319,2765.4,2765.3,0.72319]
[1739796760204,3.07221285,2765.6,2765.2,1.6446]
[1739796760507,3.79536285,2765.6,2765.4,0.72316]
[1739796760700,3.79536285,2765.6,2765.2,1.6446]
[1739796760901,3.79536285,2765.6,2765.5,0.72316]
[1739796761102,3.79536285,2765.6,2765.4,0.72317]
[1739796761303,0.7232,2765.4,2765.2,1.6446]
[1739796761499,3.07221285,2765.6,2765.2,1.6446]
[1739796761694,3.07221285,2765.6,2765.5,0.72316]
[1739796762390,0.00541839,2765.7,2765.6,0.72313]
[1739796763400,0.00541839,2765.7,2765.2,3.45267]
[1739796763401,0.72313,2765.6,2765.5,0.72314]
[1739796763600,0.72313,2765.6,2765.0,3.2078]
[1739796763601,3.07221285,2765.6,2765.2,0.5778]
[1739796763903,3.07221285,2765.3,2765.0,3.2078]
[1739796764203,5.51621285,2765.3,2765.0,3.2078]
[1739796764404,0.72326,2765.1,2765.0,3.2078]
[1739796765600,0.72335,2764.8,2764.7,3.2078]
[1739796767607,5.51621285,2764.9,2764.5,0.03813865]
[1739796767804,0.72342,2764.5,2764.4,3.2078]
[1739796768000,0.72348,2764.3,2764.1,3.2078]
[1739796768311,3.07221285,2764.3,2764.1,3.2078]
[1739796768906,5.51621285,2764.5,2764.1,3.2078]
[1739796769101,2.444,2764.5,2764.1,3.2078]
[1739796769308,0.72346,2764.4,2764.1,3.2078]
[1739796769908,3.07221285,2764.3,2764.1,3.2078]
[1739796770411,3.79570285,2764.3,2764.1,3.2078]
[1739796770708,0.7235,2764.2,2764.0,0.5575]
[1739796771010,3.07221285,2764.3,2764.0,0.5575]
[1739796771011,3.79569285,2764.3,2764.0,0.5575]
[1739796771212,3.79569285,2764.3,2764.0,1.28104]
[1739796771409,3.07221285,2764.3,2764.0,0.5575]
[1739796771803,0.72352,2764.1,2764.0,0.5575]
[1739796772011,3.16752,2764.1,2764.0,0.5575]
[1739796773306,3.16754,2764.1,2763.7,3.2078]
[1739796773509,3.16754,2764.1,2763.8,0.5242]
[1739796773510,2.444,2764.1,2763.8,0.5242]
[1739796773816,2.444,2764.1,2763.7,3.2078]
[1739796774006,3.07221285,2764.0,2763.7,3.2078]
[1739796774500,3.79578285,2764.0,2763.8,0.7236]
[1739796774703,3.07221285,2764.0,2763.7,3.2078]
[1739796774900,0.00541839,2764.2,2763.7,3.2078]
[1739796775100,0.00541839,2764.2,2764.1,3.93132]
[1739796777805,6.28001285,2764.8,2764.1,9.2078]
[1739796778104,5.51621285,2765.0,2764.5,3.2078]
[1739796778511,5.51621285,2765.0,2764.9,0.72332]
[1739796779913,5.51621285,2765.0,2764.7,0.00541839]
[1739796780208,0.72334,2764.8,2764.7,0.00541839]
[1739796780409,3.07221285,2765.0,2764.7,0.00541839]
[1739796780608,2.444,2764.9,2764.8,0.72334]
[1739796780809,2.444,2764.9,2764.8,0.5355]
[1739796781013,3.87402149,2765.2,2764.8,0.5355]
[1739796781213,0.7233,2765.0,2764.8,0.5355]
[1739796781415,0.7233,2765.0,2764.8,1.25884]
[1739796781610,4.5919231,2764.9,2764.7,0.72876839]
[1739796781822,3.8686031,2764.9,2764.8,0.72334]
[1739796782214,2.444,2765.1,2765.0,0.72329]
[1739796782413,2.444,2765.1,2764.8,0.5602]
[1739796782711,2.444,2765.1,2764.7,0.00541839]
[1739796782712,0.72334,2764.8,2764.7,0.00541839]
[1739796783313,1.26954,2764.8,2764.7,0.00541839]
[1739796784520,0.72342,2764.5,2764.4,3.2078]
[1739796784718,7.0360231,2764.5,2764.4,3.2078]
[1739796785315,7.0360231,2764.5,2764.0,1.1356]
[1739796785316,6.3126031,2764.5,2764.1,3.2078]
[1739796785524,7.0360331,2764.5,2764.3,0.72345]
[1739796786020,7.0360331,2764.5,2764.1,3.2078]
[1739796786021,6.3126031,2764.5,2764.1,3.2078]
[1739796786221,6.3126031,2764.5,2764.4,0.72345]
[1739796786416,2.444,2764.5,2764.4,0.72345]
[1739796787120,2.444,2764.5,2764.1,3.2078]
[1739796787421,0.72345,2764.4,2764.2,0.72349]
[1739796787617,7.0360431,2764.5,2764.3,0.72346]
[1739796787921,6.3126031,2764.5,2764.4,0.72345]
[1739796789017,7.0360231,2764.5,2764.4,0.72345]
[1739796789922,6.3126031,2764.5,2764.4,0.72345]
[1739796790123,1.1427,2764.7,2764.1,5.0166]
[1739796790324,2.444,2764.6,2764.1,3.2078]
[1739796790516,3.16741,2764.6,2764.1,3.2078]
[1739796790716,3.16741,2764.6,2764.3,0.72345]
[1739796791016,3.8686031,2764.5,2764.3,0.72346]
[1739796791223,2.444,2764.6,2764.5,0.72342]
[1739796791423,2.444,2764.6,2764.1,3.2078]
[1739796791627,3.16741,2764.6,2764.4,0.72344]
[1739796791920,2.444,2764.6,2764.1,3.2078]
[1739796792118,2.444,2764.6,2764.5,0.72342]
[1739796792625,3.8686031,2764.8,2764.7,0.72337]
[1739796792820,2.444,2764.8,2764.4,3.2078]
[1739796793024,0.72333,2764.9,2764.7,0.72337]
[1739796793323,2.444,2764.8,2764.7,0.72337]
[1739796793722,3.16734,2764.8,2764.7,0.72337]
[1739796794124,2.444,2764.8,2764.7,0.72337]
[1739796794618,0.00541839,2765.2,2765.1,0.72326]
[1739796796637,2.444,2765.8,2765.7,0.7231]
[1739796797040,3.8686031,2765.9,2765.6,3.2078]
[1739796797338,3.8686031,2765.9,2765.8,0.72308]
[1739796797728,4.5916631,2765.9,2765.6,3.93632839]
[1739796797925,4.5916631,2765.9,2765.6,3.93633839]
[1739796798132,3.8686031,2765.9,2765.7,0.72308]
[1739796798438,4.5916631,2765.9,2765.7,0.72308]
[1739796798637,3.8686031,2765.9,2765.6,3.21321839]
[1739796798937,2.44941839,2766.1,2765.9,0.72303]
[1739796799230,2.44941839,2766.1,2766.0,0.72302]
[1739796799429,2.44941839,2766.1,2765.6,3.21321839]
[1739796799837,2.44941839,2766.1,2765.7,0.5288]
[1739796800034,0.00541839,2766.1,2766.0,0.72302]
[1739796800938,0.00541839,2766.1,2766.0,1.80592]
[1739796802137,0.00541839,2766.1,2766.0,1.0829]
[1739796802339,0.00541839,2766.1,2766.0,1.80593]
[1739796806541,0.00541839,2766.1,2766.0,0.72303]
[1739796806846,0.00541839,2766.1,2765.7,0.5288]
[1739796807045,3.08451469,2765.8,2765.7,1.25189]
[1739796809945,0.5412,2766.0,2765.7,0.5288]
[1739796810152,3.08993308,2766.1,2766.0,0.72303]
[1739796811051,0.00541839,2766.1,2766.0,0.72303]
[1739796811254,0.00541839,2766.1,2766.0,1.28913]
[1739796821254,6.24935469,2766.7,2766.6,0.72287]
[1739796821458,0.72289,2766.6,2766.5,0.72289]
[1739796821852,0.72289,2766.6,2766.5,0.7229]
[1739796822154,6.24938469,2766.7,2766.6,0.72287]
[1739796822349,0.72288,2766.6,2766.5,0.72288]
[1739796822855,6.24937469,2766.7,2766.6,0.72287]
[1739796824060,0.72289,2766.6,2766.5,0.72287]
[1739796826158,0.72287,2766.7,2766.6,0.72286]
[1739796826556,0.72287,2766.7,2766.6,0.72285]
[1739796826752,5.53193308,2766.8,2766.7,0.72284]
[1739796826958,6.25475308,2766.8,2766.7,0.72284]
[1739796828058,5.53193308,2766.8,2766.4,5.57201]
[1739796828256,0.72287,2766.7,2766.6,0.72284]
[1739796828962,6.25476308,2766.8,2766.7,0.72284]
[1739796829263,5.53193308,2766.8,2766.7,0.72284]
[1739796829960,6.25475308,2766.8,2766.7,0.72284]
[1739796831057,3.08993308,2766.8,2766.7,0.72284]
[1739796831454,3.81275308,2766.8,2766.7,0.72284]
[1739796832055,0.00541839,2766.8,2766.7,0.72284]
[1739796832255,0.00541839,2766.8,2766.7,3.93064]
[1739796833558,0.00541839,2766.8,2766.7,0.72284]
[1739796836066,0.00541839,2766.8,2766.7,3.93064]
[1739796837570,0.00541839,2766.8,2766.7,0.72284]
[1739796841467,0.00541839,2766.8,2766.7,3.93064]
[1739796842873,0.72823839,2766.8,2766.7,3.93064]
[1739796843077,0.00541839,2766.8,2766.7,3.93064]
[1739796844169,0.72286,2766.7,2766.6,0.72284]
[1739796844770,3.81278308,2766.8,2766.7,0.72284]
[1739796844968,3.81278308,2766.8,2766.5,0.538]
[1739796844969,0.72287,2766.7,2766.4,3.7647]
[1739796845168,0.5408,2766.7,2766.6,0.72287]
[1739796845774,1.26364,2766.7,2766.6,0.72287]
[1739796845976,0.5408,2766.7,2766.6,0.72287]
[1739796846181,1.26364,2766.7,2766.6,0.72287]
[1739796846569,0.5408,2766.7,2766.6,0.72287]
[1739796846768,0.72284,2766.7,2766.6,0.72287]
[1739796846979,3.08993308,2766.8,2766.7,0.72284]
[1739796847179,3.81275308,2766.8,2766.7,0.72284]
[1739796847782,3.08993308,2766.8,2766.7,0.72284]
[1739796848079,3.81275308,2766.8,2766.7,0.72284]
[1739796848280,3.81275308,2766.8,2766.7,3.93064]
[1739796848783,0.00541839,2766.8,2766.7,3.93064]
[1739796849083,0.72823839,2766.8,2766.7,3.93064]
[1739796849381,0.72823839,2766.8,2766.7,3.2078]
[1739796849382,3.81275308,2766.8,2766.7,3.2078]
[1739796849982,3.81275308,2766.8,2766.7,3.93064]
[1739796850481,3.81275308,2766.8,2766.7,0.72284]
[1739796851481,0.00541839,2766.8,2766.7,0.72284]
[1739796851987,0.72823839,2766.8,2766.7,0.72284]
[1739796852186,0.00541839,2766.8,2766.7,3.93064]
[1739796853385,0.72823839,2766.8,2766.7,0.72284]
[1739796854285,0.00541839,2766.8,2766.7,0.72284]
[1739796854985,0.00541839,2766.8,2766.7,3.93064]
[1739796857280,0.72823839,2766.8,2766.7,3.2078]
[1739796857583,0.72823839,2766.8,2766.7,3.93064]
[1739796857786,0.72823839,2766.8,2766.7,0.72284]
[1739796861887,0.00541839,2766.8,2766.4,3.7647]
[1739796862093,9.37682938,2766.5,2765.9,3.2078]
[1739796862284,3.08451469,2766.0,2765.7,1.33144154]
[1739796862485,0.72308,2765.8,2765.7,1.33144154]
[1739796862684,0.72308,2765.8,2765.6,0.72853839]
[1739796862888,1.1327,2765.9,2765.6,0.00541839]
[1739796863189,0.5791,2765.9,2765.6,0.57041839]
[1739796863379,2.441,2766.0,2765.6,0.57041839]
[1739796863585,2.441,2766.0,2765.9,0.72305]
[1739796865090,5.52551469,2766.3,2765.8,3.2078]
[1739796865389,5.52551469,2766.6,2766.1,3.2078]
[1739796865585,0.7229,2766.5,2766.2,1.27565]
[1739796865890,6.81580469,2766.6,2766.3,0.72295]
[1739796866088,6.81580469,2766.6,2766.2,1.6531]
[1739796866393,5.52551469,2766.6,2766.5,0.7229]
[1739796866691,2.441,2766.6,2766.5,0.7229]
[1739796866892,0.00541839,2766.8,2766.7,0.72284]
[1739796871501,0.00541839,2766.8,2766.2,4.0941]
[1739796871502,6.00541839,2766.8,2766.2,0.5527]
[1739796871697,0.72308,2765.8,2765.7,0.5765]
[1739796871998,0.72311,2765.7,2765.5,3.2078]
[1739796874200,3.93091,2765.7,2765.2,1.1178]
[1739796874402,3.93091,2765.7,2765.2,0.5765]
[1739796875503,3.93091,2765.7,2765.0,0.72328]
[1739796876598,3.93091,2765.7,2764.9,1.267]
[1739796876897,3.93091,2765.7,2764.9,0.5437]
[1739796877106,0.72325,2765.2,2764.9,0.5437]
[1739796877405,0.72325,2765.2,2764.9,1.26701]
[1739796878201,5.53093308,2765.3,2764.9,1.26701]
[1739796878396,6.25416308,2765.3,2765.0,0.72329]
[1739796878601,0.72325,2765.2,2765.0,0.72329]
[1739796879199,0.72325,2765.2,2764.9,0.5437]
[1739796879511,5.53093308,2765.3,2764.9,0.5437]
[1739796879896,0.72329,2765.0,2764.9,0.5437]
[1739796880104,0.72332,2764.9,2764.8,0.00541839]
[1739796880505,3.08451469,2765.0,2764.8,0.00541839]
[1739796881006,0.72332,2764.9,2764.8,0.00541839]
[1739796881306,3.08451469,2765.0,2764.8,0.00541839]
[1739796881506,3.2078,2765.2,2764.9,0.7233]
[1739796881507,3.80776469,2765.2,2764.9,0.7233]
[1739796881708,0.72329,2765.1,2764.9,0.7233]
[1739796882009,0.72329,2765.1,2764.8,0.00541839]
[1739796882010,3.08451469,2765.2,2764.8,0.72873839]
[1739796882194,0.7233,2765.0,2764.8,0.72873839]
[1739796882398,0.7233,2765.0,2764.9,0.72332]
[1739796882600,3.08451469,2765.2,2764.9,0.72332]
[1739796882908,0.72329,2765.0,2764.9,0.72331]
[1739796883310,0.72329,2765.0,2764.8,0.00541839]
[1739796883609,0.72329,2765.0,2764.9,0.72332]
[1739796884603,0.72331,2765.0,2764.8,0.72873839]
[1739796884807,0.72331,2765.0,2764.9,0.72332]
[1739796885010,3.08451469,2765.2,2764.8,0.72873839]
[1739796885210,3.08451469,2765.2,2764.8,0.00541839]
[1739796885510,0.7233,2765.0,2764.9,0.72331]
[1739796886210,0.7233,2765.0,2764.9,3.2078]
[1739796886507,0.7233,2765.0,2764.9,3.93112]
[1739796886710,0.7233,2765.0,2764.9,3.2078]
[1739796889612,0.7233,2765.0,2764.9,3.93112]
[1739796890111,0.7233,2765.0,2764.9,3.2078]
[1739796890608,4.89263469,2765.2,2764.8,0.00541839]
[1739796890807,3.80783469,2764.9,2764.8,0.00541839]
[1739796891003,6.24883469,2764.9,2764.8,0.00541839]
[1739796891519,2.441,2764.9,2764.8,0.72875839]
[1739796891909,3.08451469,2765.2,2764.8,0.00541839]
[1739796892109,5.52551469,2765.2,2765.0,0.72327]
[1739796892306,6.24875469,2765.2,2765.1,1.0572]
[1739796893714,5.52551469,2765.2,2764.8,0.00541839]
[1739796894015,6.24876469,2765.2,2765.1,0.72326]
[1739796894309,6.24876469,2765.2,2764.9,0.5358]
[1739796894310,0.72329,2765.0,2764.9,1.2591]
[1739796895010,0.72327,2765.1,2765.0,0.72327]
[1739796895713,6.24876469,2765.2,2765.1,0.72326]
[1739796895916,5.52551469,2765.2,2765.0,1.26327]
[1739796896213,6.24875469,2765.2,2765.1,0.72326]
[1739796896815,5.52551469,2765.2,2765.1,0.72326]
[1739796897527,0.72326,2765.1,2765.0,1.26327]
[1739796899039,6.24877469,2765.2,2765.1,0.72326]
[1739796902240,6.24875469,2765.2,2765.1,0.72326]
[1739796902738,3.80775469,2765.2,2765.1,0.72326]
[1739796903330,0.00541839,2765.3,2765.1,3.2078]
[1739796903526,2.44641839,2765.3,2765.2,0.72324]
[1739796904132,3.16962839,2765.3,2765.2,0.72324]
[1739796904331,2.44641839,2765.3,2765.2,0.72324]
[1739796904636,0.00541839,2765.3,2765.2,0.72324]
[1739796904819,2.441,2765.6,2765.3,0.72321]
[1739796905026,2.441,2765.6,2765.5,0.72316]
[1739796905321,5.52551469,2765.9,2765.8,0.72308]
[1739796907812,6.24858469,2765.9,2765.7,3.2078]
[1739796908013,5.52551469,2765.9,2765.7,3.2078]
[1739796908209,6.24859469,2765.9,2765.7,3.2078]
[1739796908415,6.24859469,2765.9,2765.8,0.72308]
[1739796909045,5.52551469,2765.9,2765.8,0.72308]
[1739796909544,3.08451469,2765.9,2765.8,0.72308]
[1739796909740,0.00541839,2766.1,2765.7,3.2078]
[1739796909741,2.44,2766.0,2765.7,3.2078]
[1739796909940,2.44,2766.0,2765.9,0.72305]
[1739796910534,3.16303,2766.0,2765.9,0.72305]
[1739796911036,2.44,2766.0,2765.9,0.72305]
[1739796911639,3.16303,2766.0,2765.9,0.72305]
[1739796912530,2.44,2766.0,2765.9,0.72305]
[1739796912720,2.44,2766.0,2765.9,1.25935]
[1739796915821,0.00541839,2766.1,2766.0,0.72303]
[1739796916023,0.00541839,2766.1,2766.0,4.46833]
[1739796916321,0.00541839,2766.1,2766.0,12.02039721]
[1739796916520,0.72841839,2766.1,2766.0,4.46833]
[1739796916821,0.00541839,2766.1,2765.9,0.5363]
[1739796917019,0.72303,2766.0,2765.9,0.5363]
[1739796917415,0.72303,2766.0,2765.9,1.25935]
[1739796917617,0.72303,2766.0,2765.9,0.5363]
[1739796917816,0.00541839,2766.1,2766.0,0.72303]
[1739796918024,0.00541839,2766.1,2765.9,0.5363]
[1739796918217,0.72842839,2766.1,2766.0,0.72303]
[1739796918419,3.2078,2766.6,2766.0,0.72303]
[1739796918420,0.36160001,2767.3,2766.0,13.35477404]
[1739796918614,3.2078,2768.4,2767.2,3.2078]
[1739796918816,0.5641,2768.0,2767.7,3.2078]
[1739796919017,3.64861469,2768.0,2767.7,3.2078]
[1739796919217,0.5641,2768.0,2767.7,3.2078]
[1739796919418,3.64861469,2768.0,2767.7,3.2078]
[1739796919620,4.37113469,2768.0,2767.6,0.00541839]
[1739796919824,3.64861469,2768.0,2767.8,3.2078]
[1739796920020,6.08761469,2768.0,2767.8,3.2078]
[1739796920228,0.00541839,2768.1,2767.8,3.2078]
[1739796920421,0.00541839,2768.1,2767.8,3.93034]
[1739796920621,0.00541839,2768.1,2767.9,0.72253]
[1739796920825,0.00541839,2768.1,2768.0,0.7225]
[1739796922733,0.00541839,2768.1,2768.0,1.259]
[1739796923925,0.1,2768.6,2768.0,8.9745]
[1739796924125,0.1,2768.6,2768.5,3.93017]
[1739796927628,0.1,2768.6,2768.5,4.47807]
[1739796927825,0.1,2768.6,2768.5,3.7557]
[1739796928034,0.1,2768.6,2767.7,1.80646]
[1739796928035,3.18451469,2768.6,2768.1,3.2078]
[1739796928231,0.72249,2768.1,2767.8,3.2078]
[1739796928433,3.08451469,2767.9,2767.8,3.2078]
[1739796928834,3.08451469,2768.2,2767.8,3.2078]
[1739796929541,2.9838,2768.5,2768.2,0.72244]
[1739796929542,6.06831469,2768.5,2768.2,0.72244]
[1739796929740,6.06831469,2768.5,2768.3,0.72241]
[1739796930142,0.1,2768.6,2768.4,0.72238]
[1739796930543,0.1,2768.6,2768.5,0.72237]
[1739796930846,0.1,2768.6,2768.4,0.72239]
[1739796931143,0.1,2768.6,2768.4,3.2078]
[1739796931337,0.1,2768.6,2768.4,3.93019]
[1739796931945,0.82235,2768.6,2768.4,3.93019]
[1739796932146,0.82236,2768.6,2768.4,3.2078]
[1739796932345,0.72237,2768.5,2768.4,3.2078]
[1739796932648,0.82237,2768.6,2768.2,1.29224]
[1739796932943,0.82237,2768.6,2768.2,1.29223]
[1739796933145,0.82237,2768.6,2768.2,0.5698]
[1739796933346,0.82237,2768.6,2768.3,0.72242]
[1739796933554,0.1,2768.6,2768.3,0.72242]
[1739796933739,0.82235,2768.6,2768.4,0.7224]
[1739796933946,0.72237,2768.5,2768.2,0.5698]
[1739796934135,0.1,2768.6,2768.2,0.5698]
[1739796934343,0.1,2768.6,2768.3,0.72241]
[1739796934547,0.82236,2768.6,2768.4,0.7224]
[1739796934753,0.82236,2768.6,2768.2,0.5698]
[1739796934754,0.1,2768.6,2768.2,0.5698]
[1739796935046,0.1,2768.6,2768.4,0.72239]
[1739796935251,0.82236,2768.6,2768.4,0.72239]
[1739796935452,0.1,2768.6,2768.2,0.5698]
[1739796935652,0.72239,2768.5,2768.3,0.72241]
[1739796935949,0.72239,2768.5,2768.2,0.5698]
[1739796936255,0.82237,2768.6,2768.4,0.72239]
[1739796936551,0.82237,2768.6,2768.2,0.5698]
[1739796936552,0.1,2768.6,2768.2,0.5698]
[1739796936851,0.72238,2768.5,2768.4,0.72239]
[1739796937047,0.72238,2768.5,2768.2,0.5698]
[1739796937249,0.72239,2768.5,2768.2,0.5698]
[1739796937554,0.1,2768.6,2768.2,0.5698]
[1739796937751,0.1,2768.6,2768.5,0.72237]
[1739796938151,0.82235,2768.6,2768.4,0.72238]
[1739796938354,0.82235,2768.6,2768.2,0.5698]
[1739796938655,0.1,2768.6,2768.5,0.72237]
[1739796940051,0.1,2768.6,2768.5,1.28527]
[1739796941353,0.72237,2768.5,2768.4,3.93019]
[1739796941560,0.72237,2768.5,2768.3,0.7224]
[1739796941858,0.72239,2768.5,2768.2,0.5698]
[1739796942052,0.72239,2768.5,2768.3,0.72242]
[1739796942258,0.1,2768.6,2768.3,0.72242]
[1739796942458,0.1,2768.6,2768.2,0.5698]
[1739796942459,0.1,2768.6,2768.4,0.72239]
[1739796942659,0.82236,2768.6,2768.4,0.72239]
[1739796943161,0.72241,2768.4,2768.3,0.72241]
[1739796943357,0.72239,2768.5,2768.4,0.7224]
[1739796943558,0.82236,2768.6,2768.4,0.72238]
[1739796943860,0.72237,2768.5,2768.4,0.72239]
[1739796944454,0.82236,2768.6,2768.4,0.72238]
[1739796944653,0.72237,2768.5,2768.4,0.72238]
[1739796945160,0.72241,2768.4,2768.3,0.72241]
[1739796945452,0.1,2768.6,2768.3,0.72241]
[1739796945660,0.72238,2768.5,2768.4,0.72239]
[1739796946053,0.72242,2768.4,2768.3,0.72242]
[1739796946260,0.1,2768.6,2768.2,0.5698]
[1739796946459,0.72243,2768.3,2768.2,1.29225]
[1739796946756,0.72242,2768.4,2768.3,0.72243]
[1739796947148,0.1,2768.6,2768.2,0.5698]
[1739796947353,0.82236,2768.6,2768.2,0.5698]
[1739796947563,0.82236,2768.6,2768.5,0.72237]
[1739796948254,0.82236,2768.6,2768.2,2.37592]
[1739796948255,0.1,2768.6,2768.2,0.5698]
[1739796948455,0.72238,2768.5,2768.4,0.72238]
[1739796948852,0.1,2768.6,2768.2,0.5698]
[1739796949059,0.1,2768.6,2768.5,0.72237]
[1739796950954,0.1,2768.6,2768.4,3.2078]
[1739796951151,0.72237,2768.5,2768.4,3.2078]
[1739796951756,0.72237,2768.5,2768.4,3.9302]
[1739796952559,0.72237,2768.5,2768.4,3.2078]
[1739796953257,0.72237,2768.5,2768.4,3.9302]
[1739796955456,0.72237,2768.5,2768.4,3.2078]
[1739796955661,0.72237,2768.5,2768.4,3.9302]
[1739796959358,0.82237,2768.6,2768.5,0.72237]
[1739796960257,0.1,2768.6,2768.4,3.2078]
[1739796960458,0.82237,2768.6,2768.5,0.72237]
[1739796960955,0.72245,2768.2,2767.2,3.2078]
[1739796961165,3.80709469,2767.7,2767.2,3.2078]
[1739796961358,2.436,2767.9,2767.6,3.93579839]
[1739796961558,2.436,2767.9,2767.6,3.93580839]
[1739796961764,2.436,2767.9,2767.7,1.0822]
[1739796962463,0.72256,2767.8,2767.7,1.0822]
[1739796962769,3.15854,2767.9,2767.7,1.0822]
[1739796963163,2.436,2767.9,2767.7,1.0822]
[1739796963356,3.15854,2767.9,2767.7,1.0822]
[1739796963562,2.436,2767.9,2767.7,1.0822]
[1739796963770,3.15854,2767.9,2767.7,1.0822]
[1739796963961,0.72256,2767.8,2767.7,1.0822]
[1739796964162,2.436,2767.9,2767.7,1.0822]
[1739796964461,0.72256,2767.8,2767.7,1.0822]
[1739796964662,2.436,2767.9,2767.7,1.0822]
[1739796965062,3.15854,2767.9,2767.7,1.0822]
[1739796965465,3.15854,2767.9,2767.7,2.37428]
[1739796965767,0.72256,2767.8,2767.7,1.6517]
[1739796966168,3.15854,2767.9,2767.7,2.37428]
[1739796966367,0.72256,2767.8,2767.7,2.37428]
[1739796966571,0.72256,2767.8,2767.7,1.6517]
[1739796966866,2.436,2767.9,2767.6,3.21321839]
[1739796966867,0.72258,2767.7,2767.6,0.00541839]
[1739796967067,3.80709469,2767.7,2767.6,0.00541839]
[1739796967270,7.01489469,2767.7,2767.6,0.00541839]
[1739796967671,0.72277,2767.0,2766.9,0.5737]
[1739796969197,3.08993308,2767.2,2766.9,0.5737]
[1739796969392,0.00541839,2767.2,2767.0,3.2078]
[1739796969600,0.00541839,2767.2,2767.1,0.72274]
[1739796971992,0.72814839,2767.2,2767.0,3.93055]
[1739796972294,0.00541839,2767.2,2767.0,3.93056]
[1739796972490,0.72814839,2767.2,2767.0,3.93056]
[1739796972690,0.72274,2767.1,2767.0,3.2078]
[1739796973482,0.72274,2767.1,2767.0,3.93055]
[1739796974181,0.72274,2767.1,2767.0,3.2078]
[1739796974369,0.00541839,2767.2,2767.0,3.2078]
[1739796974569,0.72274,2767.1,2767.0,3.93055]
[1739796975076,0.72274,2767.1,2767.0,3.2078]
[1739796975473,0.72274,2767.1,2767.0,3.93057]
[1739796975975,3.08993308,2767.2,2766.7,4.32311839]
[1739796976278,3.93062,2766.8,2766.7,0.00541839]
[1739796976469,0.72297,2766.3,2766.0,3.2078]
[1739796976874,0.72297,2766.3,2766.0,3.93082]
[1739796977072,1.29562,2766.4,2766.2,0.72297]
[1739796977274,2.437,2766.6,2766.0,3.2078]
[1739796977275,2.437,2766.6,2766.5,0.7229]
[1739796977473,3.93062,2766.8,2766.6,0.72285]
[1739796977673,3.93062,2766.8,2766.3,0.00541839]
[1739796977674,3.93062,2766.8,2766.7,0.5731]
[1739796978071,2.437,2767.0,2766.7,0.5731]
[1739796978272,2.437,2767.0,2766.7,1.29593]
[1739796978673,2.437,2767.0,2766.7,0.5731]
[1739796979175,3.66431469,2767.1,2766.8,0.72281]
[1739796979482,3.66431469,2767.1,2767.0,0.72277]
[1739796981581,3.08451469,2767.1,2767.0,0.72277]
[1739796982281,0.00541839,2767.2,2767.1,0.72274]
[1739796983085,0.00541839,2767.2,2767.1,1.24894]
[1739796988186,0.00541839,2767.2,2767.1,9.03508282]
[1739796988379,0.5427,2767.9,2767.1,8.31234282]
[1739796988574,0.5427,2767.9,2767.8,0.72256]
[1739796989381,1.26523,2767.9,2767.8,0.72256]
[1739796989586,0.5427,2767.9,2767.6,0.5331]
[1739796989783,0.72257,2767.8,2767.7,0.72257]
[1739796990082,0.5427,2767.9,2767.4,5.01443]
[1739796990281,1.26524,2767.9,2767.8,0.72256]
[1739796990983,0.5427,2767.9,2767.8,0.72256]
[1739796991886,1.26523,2767.9,2767.8,0.72256]
[1739796992587,0.5427,2767.9,2767.8,0.72256]
[1739796993093,6.07511469,2768.0,2767.6,0.526]
[1739796993384,5.52051469,2768.0,2767.9,0.72253]
[1739796993890,6.24302469,2768.0,2767.9,0.72253]
[1739796994088,5.52051469,2768.0,2767.6,0.526]
[1739796994291,3.80703469,2768.0,2767.9,0.72253]
[1739796994481,3.80702469,2768.0,2767.9,0.72253]
[1739796994782,3.08451469,2768.0,2767.9,0.72253]
[1739796994989,3.80702469,2768.0,2767.9,0.72253]
[1739796995383,3.08451469,2768.0,2767.9,0.72253]
[1739796996388,0.00541839,2768.1,2768.0,0.72251]
[1739797007494,0.00541839,2768.1,2768.0,3.93031]
[1739797010700,0.00541839,2768.1,2768.0,11.30408557]
[1739797011000,2.535,2768.6,2768.5,0.72237]
[1739797011193,3.25735,2768.6,2768.5,0.72237]
[1739797011498,0.1,2768.6,2768.5,0.72237]
[1739797011796,0.1,2768.6,2768.5,3.93017]
[1739797011996,0.36160001,2769.5,2768.6,3.61176]
[1739797011997,0.00541839,2768.8,2768.6,3.61176]
[1739797012205,8.39e-06,2768.8,2768.7,4.38153469]